fUSD/lending_fUSD_20250824
["ID","MTS","AMOUNT","RATE_DAILY","PERIOD"]
[381134502,1756065056576,-356.666658,0.00021661,2]
[381134503,1756065056586,-673.643556,0.00021661,2]
[381134504,1756065056595,-356.666658,0.00021661,2]
[381134505,1756065056605,-151.0,0.00021661,2]
[381134506,1756065056614,-151.0,0.00021661,2]
[381134507,1756065056623,-356.666658,0.00021661,2]
[381134508,1756065056633,-151.0,0.00021661,2]
[381134509,1756065056642,-151.0,0.00021661,2]
[381134510,1756065056651,-151.0,0.00021661,2]
[381134511,1756065056661,-151.0,0.00021661,2]
[381134512,1756065056671,-673.643556,0.00021661,2]
[381134513,1756065056680,-151.0,0.00021661,2]
[381134514,1756065056689,-673.643556,0.00021661,2]
[381134515,1756065056698,-151.0,0.00021661,2]
[381134516,1756065056708,-673.643556,0.00021661,2]
[381134517,1756065056717,-515.916941,0.00021661,2]
[381134518,1756065056726,-151.0,0.00021661,2]
[381134519,1756065056736,-515.916941,0.00021661,2]
[381134520,1756065056745,-151.0,0.00021661,2]
[381134521,1756065056754,-151.0,0.00021661,2]
[381134522,1756065056764,-151.0,0.00021661,2]
[381134523,1756065056774,-151.0,0.00021661,2]
[381134524,1756065056784,-515.916941,0.00021661,2]
[381134525,1756065056793,-151.0,0.00021661,2]
[381134526,1756065056802,-515.916941,0.00021661,2]
[381134527,1756065056812,-151.0,0.00021661,2]
[381134528,1756065056822,-151.0,0.00021661,2]
[381134529,1756065056831,-459.762028,0.00021661,2]
[381134530,1756065056841,-166.47698,0.00021661,2]
[381134531,1756065056850,-151.0,0.00021661,2]
[381134532,1756065056860,-166.47698,0.00021661,2]
[381134533,1756065056869,-459.762028,0.00021661,2]
[381134535,1756065056878,-345.773423,0.00021661,2]
[381134536,1756065056887,-151.0,0.00021661,2]
[381134538,1756065056897,-166.47698,0.00021661,2]
[381134540,1756065056906,-345.773423,0.00021661,2]
[381134541,1756065056915,-459.762028,0.00021661,2]
[381134543,1756065056925,-166.47698,0.00021661,2]
[381134545,1756065056935,-345.773423,0.00021661,2]
[381134546,1756065056944,-151.0,0.00021661,2]
[381134548,1756065056953,-459.762028,0.00021661,2]
[381134549,1756065056962,-151.0,0.00021661,2]
[381134551,1756065056971,-345.773423,0.00021661,2]
[381134552,1756065056981,-151.0,0.00021661,2]
[381134554,1756065056990,-151.0,0.00021661,2]
[381134556,1756065056999,-151.0,0.00021661,2]
[381134557,1756065057009,-266.42359578,0.00021665,2]
[381134558,1756065057017,-1425.0,0.00021671,2]
[381134559,1756065057027,-150.0,0.00021672,4]
[381134560,1756065057036,-150.0,0.00021672,4]
[381134561,1756065057046,-150.0,0.00021672,4]
[381134563,1756065057054,-1424.90195402,0.00021676,2]
[381134565,1756065057065,-150.0,0.00021677,2]
[381134566,1756065057078,-150.0,0.00021689,2]
[381134568,1756065057087,-1000.0,0.00021689,2]
[381134569,1756065057096,-150.0,0.00021691,4]
[381134571,1756065057106,-6500.0,0.000217,7]
[381134573,1756065057116,-1000.0,0.000217,2]
[381134574,1756065057126,-200.0,0.000217,2]
[381134576,1756065057138,-5418.50942787,0.000217,2]
[381134577,1756065057148,-1000.0,0.00021701,2]
[381134578,1756065057158,-422.70366188,0.00021705,2]
[381134579,1756065057168,-150.0,0.00021709,2]
[381134580,1756065057178,-150.0,0.00021715,4]
[381134581,1756065057188,-2890.17244848,0.00021717,2]
[381134582,1756065057198,-1208.10000015,0.00021717,2]
[381134583,1756065057207,-9780.00000005,0.00021717,2]
[381134584,1756065057220,-173.67,0.00021717,2]
[381134585,1756065057230,-150.0,0.00021718,4]
[381134586,1756065057240,-540.0,0.0002172,2]
[381134587,1756065057250,-540.0,0.00021722,2]
[381134588,1756065057259,-1091.04606244,0.00021722,2]
[381134589,1756065057270,-150.0,0.00021734,4]
[381134590,1756065057279,-200.0,0.00021741,2]
[381134591,1756065057289,-200.0,0.00021742,2]
[381134592,1756065057299,-200.0,0.00021742,2]
[381134593,1756065057308,-150.0,0.00021744,4]
[381134594,1756065057321,-274.61194519,0.0002175,2]
[381134595,1756065057330,-22780.02615194,0.00021755,2]
[381134596,1756065057340,-150.0,0.00021759,4]
[381134597,1756065057349,-154.0,0.00021767,2]
[381134598,1756065057359,-154.0,0.00021767,2]
[381134599,1756065057368,-154.0,0.00021767,2]
[381134600,1756065057378,-154.0,0.00021767,2]
[381134601,1756065057387,-154.0,0.00021767,2]
[381134602,1756065057398,-315.63038811,0.00021767,2]
[381134603,1756065057407,-150.0,0.00021769,4]
[381134604,1756065057417,-14508.20700768,0.00021771,2]
[381134605,1756065057427,-150.0,0.00021773,2]
[381134606,1756065057437,-150.0,0.00021775,4]
[381134607,1756065057446,-1000.0,0.00021778,2]
[381134608,1756065057455,-1000.0,0.00021783,2]
[381134609,1756065057464,-150.0,0.00021791,4]
[381134610,1756065057474,-150.0,0.00021792,2]
[381134611,1756065057483,-150.0,0.00021799,2]
[381134612,1756065057493,-8100.0,0.000218,7]
[381134613,1756065057509,-622.0,0.000218,2]
[381134614,1756065057518,-212.11701231,0.000218,7]
[381134615,1756065057529,-458.63746581,0.000218,7]
[381134616,1756065057539,-1000.0,0.000218,2]
[381134617,1756065057548,-150.0,0.00021803,4]
[381134618,1756065057558,-150.0,0.0002181,2]
[381134619,1756065057570,-150.0,0.00021814,2]
[381134620,1756065057579,-4461.25746637,0.00021816,2]
[381134621,1756065057589,-266.42359578,0.00021816,2]
[381134622,1756065057599,-162.70396193,0.00021817,2]
[381134623,1756065057609,-1545.37414873,0.00021817,2]
[381134624,1756065057618,-6275.04198981,0.00021817,2]
[381134625,1756065057628,-150.4275276,0.00021819,2]
[381134626,1756065057638,-1000.0,0.0002182,2]
[381134627,1756065057647,-151.0,0.00021822,2]
[381134628,1756065057657,-151.0,0.00021822,2]
[381134629,1756065057667,-711.987096,0.00021822,2]
[381134630,1756065057676,-1056.653563,0.00021822,2]
[381134631,1756065057686,-711.987096,0.00021822,2]
[381134632,1756065057695,-151.0,0.00021822,2]
[381134633,1756065057705,-1056.653563,0.00021822,2]
[381134634,1756065057714,-711.987096,0.00021822,2]
[381134636,1756065057724,-1056.653563,0.00021822,2]
[381134638,1756065057733,-262.773019,0.00021822,2]
[381134640,1756065057743,-711.987096,0.00021822,2]
[381134641,1756065057752,-1056.653563,0.00021822,2]
[381134643,1756065057761,-262.773019,0.00021822,2]
[381134645,1756065057771,-262.773019,0.00021822,2]
[381134646,1756065057780,-151.0,0.00021822,2]
[381134648,1756065057791,-262.773019,0.00021822,2]
[381134650,1756065057801,-151.0,0.00021822,2]
[381134652,1756065057811,-151.0,0.00021822,2]
[381134654,1756065057822,-151.0,0.00021822,2]
[381134655,1756065057831,-151.0,0.00021822,2]
[381134657,1756065057841,-151.0,0.00021822,2]
[381134659,1756065057850,-151.0,0.00021822,2]
[381134661,1756065057859,-151.0,0.00021822,2]
[381134662,1756065057868,-151.0,0.00021822,2]
[381134664,1756065057878,-151.0,0.00021822,2]
[381134666,1756065057887,-151.0,0.00021822,2]
[381134667,1756065057895,-151.0,0.00021822,2]
[381134669,1756065057905,-151.0,0.00021822,2]
[381134671,1756065057914,-151.0,0.00021822,2]
[381134673,1756065057924,-150.0,0.00021833,4]
[381134674,1756065057933,-1425.0,0.00021833,2]
[381134676,1756065057942,-150.0,0.00021847,4]
[381134678,1756065057952,-150.0,0.00021865,2]
[381134679,1756065057961,-500.0,0.00021865,2]
[381134681,1756065057970,-500.0,0.00021865,2]
[381134683,1756065057979,-277.4687324,0.00021865,2]
[381134685,1756065057988,-150.0,0.00021865,2]
[381134686,1756065057998,-150.0,0.00021865,2]
[381134688,1756065058008,-500.0,0.00021865,2]
[381134690,1756065058017,-500.0,0.00021865,2]
[381134692,1756065058027,-500.0,0.00021865,2]
[381134693,1756065058036,-250.0,0.00021865,2]
[381134695,1756065058046,-150.0,0.00021865,2]
[381134697,1756065058057,-150.0,0.00021865,2]
[381134699,1756065058075,-500.0,0.00021865,2]
[381134701,1756065058084,-150.0,0.00021865,2]
[381134702,1756065058094,-200.0,0.00021865,2]
[381134704,1756065058103,-253.4327704,0.00021865,2]
[381134706,1756065058113,-500.0,0.00021865,2]
[381134708,1756065058122,-150.0,0.00021865,2]
[381134709,1756065058131,-150.0,0.00021865,2]
[381134711,1756065058141,-150.0,0.00021865,2]
[381134713,1756065058151,-201.68471473,0.00021865,2]
[381134715,1756065058161,-154.68165827,0.00021865,2]
[381134717,1756065058170,-150.0,0.00021865,2]
[381134719,1756065058179,-500.0,0.00021865,2]
[381134721,1756065058189,-150.0,0.00021865,2]
[381134723,1756065058199,-500.0,0.00021865,2]
[381134725,1756065058209,-500.0,0.00021865,2]
[381134727,1756065058219,-505.0,0.00021865,2]
[381134729,1756065058228,-150.0,0.00021865,2]
[381134731,1756065058237,-500.0,0.00021865,2]
[381134733,1756065058246,-416.0,0.00021865,2]
[381134735,1756065058255,-150.0,0.00021865,2]
[381134737,1756065058265,-500.0,0.00021865,2]
[381134739,1756065058274,-500.0,0.00021865,2]
[381134741,1756065058286,-150.0,0.00021865,2]
[381134743,1756065058297,-500.0,0.00021865,2]
[381134745,1756065058306,-150.0,0.00021865,2]
[381134747,1756065058315,-300.0,0.00021865,2]
[381134749,1756065058329,-150.0,0.00021865,2]
[381134751,1756065058339,-500.0,0.00021865,2]
[381134753,1756065058349,-500.0,0.00021865,2]
[381134755,1756065058358,-150.0,0.00021865,2]
[381134757,1756065058367,-500.0,0.00021865,2]
[381134759,1756065058377,-150.0,0.00021865,2]
[381134761,1756065058388,-150.0,0.00021865,2]
[381134763,1756065058398,-500.0,0.00021865,2]
[381134765,1756065058408,-7288.06861455,0.00021867,2]
[381134857,1756065059666,-15491.95753739,0.00021867,2]
[381134859,1756065059676,-1000.0,0.00021868,2]
[381134861,1756065059685,-1000.0,0.00021868,2]
[381134863,1756065059695,-500.0,0.0002187,2]
[381134865,1756065059704,-500.0,0.0002187,2]
[381134867,1756065059713,-500.0,0.0002187,2]
[381134869,1756065059722,-693.2036654,0.0002187,2]
[381134871,1756065059732,-1000.0,0.0002187,2]
[381134873,1756065059741,-1000.0,0.00021878,2]
[381134875,1756065059750,-1425.0,0.00021883,2]
[381134876,1756065059759,-150.0,0.00021885,2]
[381134877,1756065059768,-150.0,0.0002189,4]
[381134878,1756065059777,-150.0,0.0002189,4]
[381134879,1756065059787,-688.0,0.0002189,2]
[381134880,1756065059796,-194.21931468,0.0002189,4]
[381134881,1756065059805,-150.0,0.0002189,4]
[381134882,1756065059815,-150.0,0.0002189,4]
[381134883,1756065059824,-150.0,0.0002189,4]
[381134884,1756065059834,-150.0,0.0002189,4]
[381134885,1756065059843,-150.0,0.0002189,4]
[381134887,1756065059852,-150.0,0.0002189,4]
[381134889,1756065059861,-150.0,0.0002189,4]
[381134891,1756065059870,-150.0,0.0002189,4]
[381134893,1756065059879,-4910.0,0.0002189,2]
[381134895,1756065059888,-1000.0,0.00021899,2]
[381134897,1756065059898,-1600.0,0.000219,7]
[381134899,1756065059907,-20892.04787498,0.000219,2]
[381134901,1756065059916,-151.0,0.000219,2]
[381134903,1756065059925,-151.0,0.000219,2]
[381134904,1756065059934,-151.0,0.000219,2]
[381134906,1756065059944,-227.177152,0.000219,2]
[381134908,1756065059953,-151.0,0.000219,2]
[381134910,1756065059962,-151.0,0.000219,2]
[381134912,1756065059972,-151.0,0.000219,2]
[381134914,1756065059981,-204.019232,0.000219,2]
[381134916,1756065059990,-204.019232,0.000219,2]
[381134918,1756065059999,-151.0,0.000219,2]
[381134920,1756065060009,-204.019232,0.000219,2]
[381134922,1756065060018,-204.019232,0.000219,2]
[381134924,1756065060027,-181.966561,0.000219,2]
[381134926,1756065060036,-181.966561,0.000219,2]
[381134928,1756065060046,-668.948436,0.000219,2]
[381134930,1756065060056,-181.966561,0.000219,2]
[381134932,1756065060069,-668.948436,0.000219,2]
[381134934,1756065060079,-181.966561,0.000219,2]
[381134936,1756065060088,-668.948436,0.000219,2]
[381134938,1756065060098,-668.948436,0.000219,2]
[381134940,1756065060107,-151.0,0.000219,2]
[381134942,1756065060117,-151.0,0.000219,2]
[381134944,1756065060127,-151.0,0.000219,2]
[381134946,1756065060136,-151.0,0.000219,2]
[381134948,1756065060146,-151.0,0.000219,2]
[381134950,1756065060155,-822.51157903,0.000219,2]
[381134952,1756065060164,-802.65232657,0.000219,4]
[381134954,1756065060174,-165.7,0.000219,6]
[381134956,1756065060183,-504.61558758,0.00021906,2]
[381134958,1756065060193,-504.61558758,0.00021907,2]
[381134960,1756065060203,-150.0,0.00021914,2]
[381134962,1756065060212,-2013.1,0.00021915,2]
[381134964,1756065060221,-3999.97,0.00021915,2]
[381134966,1756065060231,-3520.48,0.00021915,2]
[381134968,1756065060240,-8243.73518606,0.00021916,8]
[381134970,1756065060250,-48794.0694187,0.00021916,8]
[381134972,1756065060262,-6913.07075864,0.00021916,8]
[381134974,1756065060273,-5678.0,0.00021916,8]
[381135241,1756065070923,2000.0,0.00016796,120]
[381135242,1756065094821,2201.7705415,0.00028767,120]
[381135245,1756065126916,1000.0,0.00012843,3]
[381135257,1756065530324,-166.28022791,0.0001278,2]
[381135258,1756065530861,-250.0,0.00012862,2]
[381135259,1756065530895,-300.0,0.0001288,2]
[381135260,1756065530928,-250.0,0.00013285,2]
[381135261,1756065530961,-295.4,0.00013699,2]
[381135262,1756065530994,-300.0,0.00014086,2]
[381135263,1756065531028,-300.0,0.00014087,2]
[381135264,1756065531063,-1200.0,0.00014087,2]
[381135265,1756065531097,-182.0,0.00014087,2]
[381135266,1756065531130,-977.0,0.00014127,2]
[381135267,1756065531163,-300.0,0.00014128,2]
[381135268,1756065532168,-166.28022791,0.00014128,3]
[381135269,1756065532330,-250.0,0.00014128,3]
[381135270,1756065532342,-300.0,0.00014128,3]
[381135271,1756065532394,-250.0,0.00014128,3]
[381135272,1756065532577,-33.71977209,0.00014128,3]
[381135273,1756065532586,-261.68022791,0.00014128,2]
[381135274,1756065532601,-300.0,0.00014128,2]
[381135275,1756065532634,-300.0,0.00014128,2]
[381135276,1756065532645,-1200.0,0.00014128,2]
[381135277,1756065532675,-182.0,0.00014128,2]
[381135278,1756065532694,-256.31977209,0.00014128,2]
[381135279,1756065532703,-203.0,0.00014128,2]
[381135280,1756065532712,-517.68022791,0.00014128,2]
[381135281,1756065532734,-300.0,0.00014128,2]
[381135282,1756065532745,-958.63954418,0.00014128,2]
[381135284,1756065613671,1000.0,0.00012871,3]
[381135286,1756065972335,150.0,0.00015373,120]
[381135287,1756065995478,305.17,0.00013924,8]
[381135313,1756066231894,-300.0,0.00013117,2]
[381135314,1756066231904,-250.0,0.00013117,2]
[381135315,1756066231914,-209.14866013,0.00013117,2]
[381135316,1756066231931,-90.85133987,0.00013117,2]
[381135317,1756066231941,-300.0,0.0001361,2]
[381135318,1756066231951,-359.89866013,0.00013832,2]
[381135319,1756066231963,-2140.10133987,0.00013832,2]
[381135320,1756066231972,-203.0,0.00013832,2]
[381135321,1756066231982,-300.0,0.00014146,2]
[381135322,1756066231992,-1200.0,0.00014146,2]
[381135323,1756066232002,-500.0,0.00014147,2]
[381135324,1756066232011,-336.66035987,0.00014147,2]
[381135325,1756066232021,-500.0,0.00014147,2]
[381135326,1756066232031,-479.46576524,0.00014147,2]
[381135327,1756066232042,-500.0,0.00014147,2]
[381135328,1756066232052,-629.53334619,0.00014147,2]
[381135329,1756066232062,-300.0,0.00014158,2]
[381135330,1756066232071,-1000.0,0.00014158,3]
[381135331,1756066232081,-250.0,0.00014158,2]
[381135332,1756066232091,-203.0,0.00014158,2]
[381135333,1756066232105,-300.0,0.00014158,2]
[381135334,1756066232115,-1000.0,0.00014158,3]
[381135335,1756066232124,-150.0,0.00014158,2]
[381135336,1756066232134,-2500.0,0.00014158,2]
[381135337,1756066232143,-151.0,0.00014173,2]
[381135338,1756066232153,-151.0,0.00014173,2]
[381135339,1756066232163,-500.0,0.00014173,2]
[381135340,1756066232173,-151.0,0.00014173,2]
[381135341,1756066232182,-500.0,0.00014173,2]
[381135342,1756066232192,-500.0,0.00014173,2]
[381135343,1756066232202,-500.0,0.00014173,2]
[381135344,1756066232211,-500.0,0.00014173,2]
[381135345,1756066232221,-151.0,0.00014173,2]
[381135346,1756066232230,-500.0,0.00014173,2]
[381135347,1756066232240,-500.0,0.00014173,2]
[381135348,1756066232250,-500.0,0.00014173,2]
[381135349,1756066232260,-348.04508398,0.00014173,2]
[381135350,1756066232269,-200.0,0.00014173,2]
[381135351,1756066232279,-150.0,0.0001418,2]
[381135352,1756066232288,-8663.62656597,0.00014182,2]
[381135353,1756066232300,-1936.18154165,0.00014182,2]
[381135354,1756066232312,-308.51910517,0.00014182,2]
[381135355,1756066232324,-452.98499856,0.00014182,2]
[381135356,1756066232336,-1122.8,0.00014182,2]
[381135357,1756066232349,-348.5173118,0.00014182,2]
[381135358,1756066232360,-474.5197,0.00014182,2]
[381135359,1756066232372,-269.72654904,0.00014182,2]
[381135360,1756066232407,-2342.23597038,0.00014182,2]
[381135361,1756066232417,-500.0,0.00014228,2]
[381135362,1756066232427,-500.0,0.00014283,2]
[381135363,1756066232438,-500.0,0.00014338,2]
[381135364,1756066232448,-200.0,0.00014378,2]
[381135365,1756066232458,-500.0,0.00014393,2]
[381135366,1756066232467,-2500.0,0.00014428,2]
[381135367,1756066232478,-83.15933219,0.00014428,2]
[381135368,1756066232491,-166.84066781,0.00014428,2]
[381135369,1756066232500,-203.0,0.00014428,2]
[381135370,1756066232510,-500.0,0.00014448,2]
[381135371,1756066232522,-500.0,0.00014503,2]
[381135372,1756066232533,-500.0,0.00014558,2]
[381135373,1756066232543,-500.0,0.00014613,2]
[381135374,1756066232554,-500.0,0.00014668,2]
[381135375,1756066232565,-151.0,0.00014721,2]
[381135376,1756066232575,-500.0,0.00014723,2]
[381135377,1756066232586,-500.0,0.00014778,2]
[381135378,1756066232598,-5080.24,0.00014783,2]
[381135379,1756066232608,-685.59,0.000148,2]
[381135380,1756066232619,-1071.32194402,0.00014993,2]
[381135381,1756066232629,-168.0,0.00014993,2]
[381135382,1756066232639,-250.0,0.00015,2]
[381135383,1756066232649,-273.5798196,0.00015123,2]
[381135384,1756066232659,-205.24301584,0.00015123,2]
[381135385,1756066232668,-924.0,0.00015131,2]
[381135386,1756066232678,-504.0,0.00015143,2]
[381135387,1756066232688,-151.0,0.00015269,2]
[381135388,1756066232699,-255.0,0.000153,2]
[381135389,1756066232708,-218.5,0.00015373,2]
[381135390,1756066232718,-150.93,0.00015373,2]
[381135391,1756066232728,-150.0,0.00015373,2]
[381135392,1756066232739,-747.38,0.00015404,2]
[381135393,1756066232750,-2751.0,0.00015424,2]
[381135394,1756066232760,-200.0,0.00015451,2]
[381135395,1756066232770,-610.0,0.00015462,2]
[381135396,1756066232780,-369.56,0.00015465,2]
[381135397,1756066232790,-420.0,0.00015495,2]
[381135398,1756066232800,-241.31,0.00015499,2]
[381135399,1756066232810,-1005.57772229,0.00015561,2]
[381135400,1756066232823,-512.0,0.00015561,2]
[381135401,1756066232835,-162.42227771,0.00015561,2]
[381135402,1756066232845,-9347.57772229,0.00015632,2]
[381135403,1756066232933,-765.67537537,0.00015632,2]
[381135404,1756066233000,-2235.15760918,0.00015632,2]
[381135405,1756066233014,-2791.40787226,0.00015632,2]
[381135406,1756066233026,-4569.23668544,0.00015632,2]
[381135407,1756066233040,-1571.75473546,0.00015632,2]
[381135408,1756066233050,-1600.39735312,0.00015806,2]
[381135409,1756066233060,-151.0,0.00015817,2]
[381135410,1756066233070,-9388.51,0.00016282,2]
[381135411,1756066233080,-5558.76676055,0.00016282,2]
[381135412,1756066233090,-5486.16885002,0.00016333,2]
[381135413,1756066233106,-662.51749735,0.00016333,2]
[381135414,1756066233119,-495.35,0.00016333,2]
[381135415,1756066233132,-4966.25365263,0.00016333,2]
[381135416,1756066233144,-666.0,0.00016438,3]
[381135417,1756066233155,-600.0,0.00016438,2]
[381135418,1756066233166,-600.0,0.00016438,2]
[381135419,1756066233176,-600.0,0.00016438,2]
[381135420,1756066233187,-600.0,0.00016438,2]
[381135421,1756066233196,-600.0,0.00016438,2]
[381135422,1756066233207,-600.0,0.00016438,2]
[381135423,1756066233218,-600.0,0.00016438,2]
[381135424,1756066233235,-600.0,0.00016438,2]
[381135425,1756066233248,-600.0,0.00016438,2]
[381135426,1756066233258,-600.0,0.00016438,2]
[381135427,1756066233268,-433.0,0.00016505,2]
[381135428,1756066233278,-2834.15634712,0.00016543,2]
[381135429,1756066234458,-127.25365288,0.00016543,2]
[381135430,1756066234470,-1203.82234112,0.00016543,2]
[381135431,1756066234482,-1471.19700628,0.00016543,2]
[381135432,1756066234496,-1565.66626413,0.00016543,2]
[381135433,1756066234508,-535.69715058,0.00016543,2]
[381135505,1756066237502,-550.63837062,0.00016543,2]
[381135506,1756066237514,-512.0,0.00016543,2]
[381135507,1756066237629,-2231.43886727,0.00016543,2]
[381135508,1756066237639,-2000.0,0.00016561,2]
[381135509,1756066237649,-127.11212388,0.00016586,2]
[381135510,1756066237666,-2242.24,0.00016586,2]
[381135511,1756066237690,-7426.70790243,0.00016586,2]
[381135512,1756066237700,-203.83661547,0.0001677,2]
[381135513,1756066237709,-1859.4554821,0.00016788,2]
[381135514,1756066237721,-550.1499995,0.00016788,2]
[381135515,1756066237750,-4182.62104872,0.00016788,2]
[381135516,1756066237759,-608.84373,0.00016812,2]
[381135517,1756066237769,-151.0,0.00016815,2]
[381135518,1756066237779,-151.0,0.00016852,2]
[381135519,1756066237788,-6262.54,0.00016862,2]
[381135520,1756066237798,-6262.54,0.00016866,2]
[381135521,1756066237807,-6262.54,0.00016871,2]
[381135522,1756066237817,-6262.54,0.00016875,2]
[381135523,1756066237826,-6262.54,0.00016879,2]
[381135524,1756066237835,-6262.54,0.00016884,2]
[381135525,1756066237844,-6262.54,0.00016888,2]
[381135526,1756066237856,-151.0,0.00016889,2]
[381135527,1756066237865,-6262.54,0.00016893,2]
[381135529,1756066237875,-6230.21522128,0.00016897,2]
[381135530,1756066237886,-32.32477872,0.00016897,2]
[381135532,1756066237896,-6262.54,0.00016902,2]
[381135534,1756066237905,-6262.54,0.00016906,2]
[381135535,1756066237914,-150.93,0.0001691,2]
[381135536,1756066237924,-6262.54,0.0001691,2]
[381135537,1756066237933,-151.0,0.00016912,2]
[381135538,1756066237942,-200.0,0.00016912,2]
[381135539,1756066237951,-4498.12522128,0.00016915,2]
[381135702,1756066239609,-1253.91186602,0.00016915,2]
[381135704,1756066239621,-510.5029127,0.00016915,2]
[381135706,1756066239631,-5131.7590873,0.00016919,2]
[381135716,1756066239715,-1130.7809127,0.00016919,2]
[381135718,1756066239726,-6262.54,0.00016924,2]
[381135720,1756066239735,-6262.54,0.00016928,2]
[381135722,1756066239746,-151.0,0.00016932,2]
[381135724,1756066239756,-1367.81656495,0.00016933,2]
[381135727,1756066239784,-518.53452257,0.00016933,2]
[381135729,1756066239797,-3148.23172688,0.00016933,2]
[381135734,1756066239830,-1227.9571856,0.00016933,2]
[381135736,1756066239840,-6262.54,0.00016937,2]
[381135738,1756066239850,-6262.54,0.00016942,2]
[381135740,1756066239865,-6262.54,0.00016946,2]
[381135742,1756066239876,-587.0,0.00016973,2]
[381135744,1756066239887,-5693.95,0.00016982,2]
[381135746,1756066239897,-300.0,0.00017,2]
[381135748,1756066239907,-203.83661529,0.00017036,2]
[381135750,1756066239917,-2351.0,0.00017117,2]
[381135752,1756066239927,-14992.51,0.00017172,2]
[381135753,1756066239936,-2857.61,0.00017172,2]
[381135755,1756066239946,-1027.41,0.00017175,2]
[381135757,1756066239955,-2452.36,0.00017219,2]
[381135759,1756066239964,-8226.28,0.00017219,2]
[381135761,1756066239973,-150.0,0.00017287,2]
[381135763,1756066239983,-150.0,0.00017287,2]
[381135765,1756066239992,-203.83661529,0.00017301,2]
[381135767,1756066240001,-201.05,0.00017316,2]
[381135769,1756066240010,-747.38,0.00017329,2]
[381135771,1756066240019,-6592.22653029,0.00017377,2]
[381135773,1756066240028,-250.0,0.00017452,2]
[381135775,1756066240037,-13323.82,0.00017562,2]
[381135777,1756066240047,-203.83661529,0.00017567,2]
[381135779,1756066240056,-2602.05,0.00017586,2]
[381135781,1756066240066,-10355.27292037,0.00017628,2]
[381135783,1756066240075,-1000.0,0.00017639,2]
[381135785,1756066240084,-911.39680377,0.0001766,2]
[381135787,1756066240096,-88.60319623,0.0001766,2]
[381135789,1756066240107,-1017.26653239,0.0001766,2]
[381135869,1756066241466,-436.28346761,0.0001766,2]
[381135870,1756066241479,-311.35166165,0.00017709,2]
[381135871,1756066241490,-2272.36487074,0.00017728,2]
[381135872,1756066241502,-554.37995939,0.00017728,2]
[381135887,1756066243151,-22746.92516987,0.00017728,2]
[381135889,1756066243161,-24096.95,0.00017728,2]
[381135890,1756066243170,-1500.0,0.00017785,2]
[381135891,1756066243179,-16181.01,0.00017785,2]
[381135893,1756066243188,-572.0,0.00017809,2]
[381135894,1756066243198,-687.08,0.00017824,2]
[381135896,1756066243207,-203.83661529,0.00017833,2]
[381135897,1756066243217,-6592.22653029,0.00017966,2]
[381135898,1756066243226,-2452.36,0.0001808,2]
[381135899,1756066243236,-203.83661529,0.00018098,2]
[381135900,1756066243245,-10355.27292035,0.00018124,2]
[381135901,1756066243255,-311.35166164,0.00018318,2]
[381135902,1756066243265,-203.83661529,0.00018364,2]
[381135903,1756066243275,-150.93,0.00018447,2]
[381135904,1756066243284,-166.66,0.00018497,2]
[381135905,1756066243293,-6592.22653029,0.00018556,2]
[381135906,1756066243303,-10355.27292035,0.0001862,2]
[381135907,1756066243312,-203.83661529,0.00018629,2]